bitfinex/quotes_BTCUSD_20250127
["timestamp","ask_amount","ask_price","bid_price","bid_amount"]
[1737983124813,0.24624529,100740.0,100720.0,0.55675843]
[1737983125014,0.29587929,100740.0,100720.0,0.00014903]
[1737983125238,0.44478929,100740.0,100720.0,0.14907003]
[1737983125372,0.44478929,100740.0,100720.0,0.34763803]
[1737983125741,0.24625929,100730.0,100720.0,0.00014903]
[1737983126257,0.24625929,100730.0,100720.0,0.14907603]
[1737983126457,0.24625929,100730.0,100720.0,0.00014903]
[1737983126697,0.09734729,100730.0,100720.0,0.31965481]
[1737983126905,0.09734729,100730.0,100720.0,0.14907603]
[1737983127081,0.24625929,100730.0,100720.0,0.14907603]
[1737983127307,0.09734729,100730.0,100720.0,0.14907603]
[1737983127493,0.09734729,100730.0,100720.0,0.15007603]
[1737983127982,0.09734729,100730.0,100720.0,0.15707603]
[1737983128205,0.87113362,100750.0,100730.0,0.347454]
[1737983128403,0.09734729,100740.0,100730.0,0.198547]
[1737983128634,0.24624529,100740.0,100730.0,0.198547]
[1737983128836,0.44477929,100740.0,100720.0,0.54718903]
[1737983129076,0.44477929,100740.0,100730.0,0.148912]
[1737983129233,0.44477929,100740.0,100720.0,0.54718903]
[1737983129459,0.32519562,100750.0,100720.0,0.14907603]
[1737983129656,0.32519562,100750.0,100740.0,0.148898]
[1737983129657,0.42254291,100750.0,100740.0,0.148898]
[1737983132994,0.42254291,100750.0,100740.0,0.31947678]
[1737983133202,0.32819562,100750.0,100740.0,0.31947678]
[1737983133416,0.32819562,100750.0,100740.0,0.40267678]
[1737983133818,0.32519562,100750.0,100740.0,0.40267678]
[1737983134262,0.32519562,100750.0,100740.0,0.40567678]
[1737983134672,0.32519562,100750.0,100740.0,0.40267678]
[1737983135014,0.32519562,100750.0,100740.0,0.51002407]
[1737983135224,0.23186643,100750.0,100740.0,0.66002407]
[1737983135432,0.0001413,100810.0,100800.0,0.148809]
[1737983135643,0.09748859,100810.0,100800.0,0.148809]
[1737983136043,0.09748859,100810.0,100790.0,0.56741478]
[1737983136257,0.09748859,100810.0,100800.0,0.148809]
[1737983136665,0.09798502,100810.0,100800.0,0.148809]
[1737983136871,0.09798502,100810.0,100790.0,0.54565]
[1737983137510,0.09798502,100810.0,100800.0,0.148809]
[1737983137672,0.00063773,100810.0,100800.0,0.4131577]
[1737983137872,0.00063773,100810.0,100800.0,0.41216576]
[1737983138339,0.00063773,100810.0,100800.0,0.49176576]
[1737983138571,0.00063773,100810.0,100800.0,0.229409]
[1737983138979,0.00063773,100810.0,100800.0,0.58911305]
[1737983139192,0.00063773,100810.0,100800.0,0.90324196]
[1737983139928,0.00063773,100810.0,100800.0,0.91224196]
[1737983140315,0.0001416,100820.0,100810.0,0.49526746]
[1737983140520,0.0001413,100830.0,100820.0,0.67323676]
[1737983140664,0.00029019,100830.0,100820.0,0.74058405]
[1737983140866,0.00029019,100830.0,100820.0,0.76058405]
[1737983141912,0.00029019,100830.0,100820.0,0.30378]
[1737983142255,0.00029019,100830.0,100820.0,0.15378]
[1737983142652,0.00029019,100830.0,100820.0,0.16278]
[1737983143107,0.09763748,100830.0,100820.0,0.005]
[1737983143332,0.24640248,100830.0,100820.0,0.009]
[1737983143748,0.24640248,100830.0,100820.0,0.013]
[1737983143749,0.09763748,100830.0,100820.0,0.013]
[1737983143927,0.24640248,100830.0,100820.0,0.013]
[1737983144149,0.09763748,100830.0,100820.0,0.013]
[1737983144371,0.24640248,100830.0,100820.0,0.009]
[1737983145447,0.24640248,100830.0,100810.0,0.545563]
[1737983145652,0.09734729,100820.0,100810.0,0.347171]
[1737983146004,0.00029019,100830.0,100820.0,0.14878]
[1737983146615,0.00029019,100830.0,100820.0,0.14978]
[1737983147004,0.09763748,100830.0,100820.0,0.14978]
[1737983147206,0.09763748,100830.0,100820.0,0.14878]
[1737983147428,0.00029019,100830.0,100820.0,0.14878]
[1737983147630,0.00029019,100830.0,100820.0,0.14977173]
[1737983147837,0.00029019,100830.0,100820.0,0.24711902]
[1737983148110,0.00029019,100830.0,100820.0,0.24612729]
[1737983149070,0.00029019,100830.0,100820.0,0.39612729]
[1737983149283,0.00029019,100830.0,100820.0,0.42630294]
[1737983149497,0.00029019,100830.0,100820.0,0.45570233]
[1737983149696,0.00029019,100830.0,100820.0,0.29978]
[1737983149902,0.00029019,100830.0,100820.0,0.39612729]
[1737983150140,0.00029019,100830.0,100820.0,0.68419377]
[1737983150347,0.00029019,100830.0,100820.0,0.65848405]
[1737983150554,0.00029019,100830.0,100820.0,0.57013676]
[1737983150771,0.00029019,100830.0,100820.0,0.57413676]
[1737983151411,0.00029019,100830.0,100820.0,0.57013676]
[1737983151755,0.00029019,100830.0,100820.0,0.58427694]
[1737983151982,0.00029019,100830.0,100820.0,0.68162423]
[1737983152838,0.00029019,100830.0,100820.0,0.58427694]
[1737983153459,0.00029019,100830.0,100820.0,0.68162423]
[1737983154277,0.00029019,100830.0,100820.0,0.70189101]
[1737983154829,0.0001416,100850.0,100820.0,0.77919101]
[1737983155028,0.0001416,100850.0,100840.0,0.14875]
[1737983155595,0.0001416,100850.0,100840.0,0.50845405]
[1737983155789,0.0001416,100850.0,100840.0,0.41110676]
[1737983157497,0.0001416,100850.0,100840.0,0.41510676]
[1737983157700,0.0001416,100850.0,100840.0,0.44401981]
[1737983158137,0.0001416,100850.0,100840.0,0.44501981]
[1737983158362,0.0001416,100850.0,100840.0,0.15375]
[1737983158771,0.0001416,100850.0,100840.0,0.32374389]
[1737983158972,0.09748889,100850.0,100840.0,0.15375]
[1737983159607,0.0001416,100850.0,100840.0,0.15375]
[1737983160445,0.09748889,100850.0,100840.0,0.15375]
[1737983160664,0.24622389,100850.0,100840.0,0.005]
[1737983161074,0.62121778,100850.0,100840.0,0.005]
[1737983161279,0.14878,100820.0,100810.0,0.00029694]
[1737983161495,0.68875887,100820.0,100810.0,0.00044583]
[1737983161698,0.68752118,100820.0,100810.0,0.00044583]
[1737983162152,0.53752729,100820.0,100810.0,0.00044583]
[1737983162365,0.51752729,100820.0,100810.0,0.00044583]
[1737983162573,0.36752729,100820.0,100810.0,0.00044583]
[1737983163408,0.68752118,100820.0,100810.0,0.00044583]
[1737983163617,0.51752729,100820.0,100810.0,0.00044583]
[1737983163819,0.52752729,100820.0,100810.0,0.00044583]
[1737983164026,0.51752729,100820.0,100810.0,0.00044583]
[1737983164227,0.36752729,100820.0,100810.0,0.00044583]
[1737983164679,0.37052729,100820.0,100810.0,0.00044583]
[1737983164878,0.36952729,100820.0,100810.0,0.00044583]
[1737983165498,0.09734729,100820.0,100810.0,0.14923983]
[1737983165911,0.09934729,100820.0,100810.0,0.14923983]
[1737983166320,0.002,100820.0,100810.0,0.15023169]
[1737983166532,0.002,100820.0,100810.0,0.15023161]
[1737983166743,0.005,100820.0,100810.0,0.14923983]
[1737983166946,0.002,100820.0,100810.0,0.32022546]
[1737983167149,0.002,100820.0,100810.0,0.56658101]
[1737983167359,0.0001416,100850.0,100840.0,0.14875]
[1737983167510,0.09748889,100850.0,100840.0,0.14875]
[1737983168119,0.24746158,100850.0,100840.0,0.14875]
[1737983168296,0.24622389,100850.0,100840.0,0.14875]
[1737983168507,0.44453789,100850.0,100830.0,0.54543]
[1737983168713,0.0001416,100850.0,100840.0,0.14875]
[1737983169082,0.09748889,100850.0,100840.0,0.14875]
[1737983169292,0.0001416,100850.0,100840.0,0.14875]
[1737983169496,0.09748889,100850.0,100840.0,0.14875]
[1737983170562,0.0001416,100850.0,100840.0,0.14875]
[1737983170800,0.0001416,100850.0,100840.0,0.31874389]
[1737983171013,0.0001416,100850.0,100840.0,0.15175]
[1737983171212,0.0001416,100850.0,100840.0,0.14875]
[1737983171565,0.0001416,100850.0,100840.0,0.15575]
[1737983172062,0.0001416,100850.0,100840.0,0.1587415]
[1737983172649,0.0001416,100850.0,100840.0,0.15775]
[1737983174033,0.24622389,100850.0,100840.0,0.009]
[1737983174227,0.46151778,100850.0,100840.0,0.009]
[1737983174379,0.29152389,100850.0,100840.0,0.00929694]
[1737983175215,0.36952389,100850.0,100840.0,0.00729694]
[1737983175413,0.53951778,100850.0,100840.0,0.00729694]
[1737983175741,0.36952389,100850.0,100840.0,0.00729694]
[1737983176315,0.36952389,100850.0,100840.0,0.00029694]
[1737983176513,0.36952389,100850.0,100840.0,0.00429694]
[1737983176758,0.51952389,100850.0,100840.0,0.00429694]
[1737983176948,0.36952389,100850.0,100840.0,0.00429694]
[1737983177788,0.68951778,100850.0,100840.0,0.00429694]
[1737983177963,0.52052389,100850.0,100840.0,0.00029694]
[1737983179392,0.69051778,100850.0,100840.0,0.00029694]
[1737983180625,0.72051778,100850.0,100840.0,0.00029694]
[1737983181211,0.71751778,100850.0,100840.0,0.00029694]
[1737983181408,0.70751778,100850.0,100840.0,0.00029694]
[1737983182243,0.51752389,100850.0,100840.0,0.00029694]
[1737983182417,0.51252389,100850.0,100840.0,0.00029694]
[1737983182621,0.49252389,100850.0,100840.0,0.00029694]
[1737983182823,0.66251778,100850.0,100840.0,0.00029694]
[1737983183248,0.49252389,100850.0,100840.0,0.00029694]
[1737983183827,0.14875,100840.0,100820.0,0.545513]
[1737983184024,0.09724729,100830.0,100820.0,0.347141]
[1737983184233,0.29561329,100830.0,100810.0,0.14923583]
[1737983184427,0.64275229,100830.0,100810.0,0.14923583]
[1737983184634,0.24602229,100830.0,100810.0,0.15022774]
[1737983184857,0.09724729,100830.0,100820.0,0.14878]
[1737983185084,0.24601229,100830.0,100820.0,0.002]
[1737983185459,0.24601229,100830.0,100810.0,0.74437783]
[1737983185660,0.09724729,100830.0,100820.0,0.14878]
[1737983186153,0.44560398,100830.0,100810.0,0.54999583]
[1737983186349,0.64272929,100830.0,100810.0,0.54999583]
[1737983186755,0.24601229,100830.0,100810.0,0.54999583]
[1737983186959,0.24601229,100830.0,100810.0,0.75737683]
[1737983187205,0.44436629,100830.0,100810.0,0.36061583]
[1737983187404,0.44436629,100830.0,100810.0,0.35161583]
[1737983187405,0.64273029,100830.0,100810.0,0.35161583]
[1737983187579,0.49396529,100830.0,100810.0,0.16223583]
[1737983187783,0.44437629,100830.0,100820.0,0.14878]
[1737983187984,0.44437629,100830.0,100810.0,0.55501083]
[1737983188258,0.09724729,100830.0,100820.0,0.15278]
[1737983188420,0.24601229,100830.0,100820.0,0.15278]
[1737983188920,0.24601229,100830.0,100820.0,0.14878]
[1737983189282,0.24601229,100830.0,100820.0,0.15178]
[1737983189949,0.24601229,100830.0,100820.0,0.16078]
[1737983190367,0.24601229,100830.0,100820.0,0.012]
[1737983190554,0.39601229,100830.0,100820.0,0.012]
[1737983190754,0.39576413,100830.0,100820.0,0.012]
[1737983191335,0.39576413,100830.0,100820.0,0.009]
[1737983191533,0.24576413,100830.0,100820.0,0.15778]
[1737983191894,0.09699913,100830.0,100820.0,0.16078]
[1737983192505,0.09699913,100830.0,100820.0,0.15778]
[1737983192727,0.24576413,100830.0,100820.0,0.15778]
[1737983192881,0.24576413,100830.0,100820.0,0.14878]
[1737983193083,0.44412913,100830.0,100810.0,0.54599883]
[1737983193430,0.14878,100820.0,100810.0,0.00044583]
[1737983193630,0.24736498,100820.0,100810.0,0.00044583]
[1737983193839,0.24612729,100820.0,100810.0,0.00044583]
[1737983193974,0.24612729,100820.0,100810.0,0.14923983]
[1737983194595,0.24612729,100820.0,100810.0,0.15823983]
[1737983194795,0.09734729,100820.0,100810.0,0.14923983]
[1737983195231,0.24612729,100820.0,100810.0,0.14923983]
[1737983195426,0.09734729,100820.0,100810.0,0.14923983]
[1737983195634,0.09734729,100820.0,100810.0,0.15223983]
[1737983195810,0.24612729,100820.0,100810.0,0.15223983]
[1737983196390,0.09734729,100820.0,100810.0,0.16123983]
[1737983197357,0.24612729,100820.0,100810.0,0.16123983]
[1737983198315,0.09734729,100820.0,100810.0,0.16123983]
[1737983198517,0.24612729,100820.0,100810.0,0.01244583]
[1737983199095,0.24612729,100820.0,100810.0,0.16123983]
[1737983199872,0.47530446,100820.0,100810.0,0.01244583]
[1737983200084,0.77499835,100820.0,100810.0,0.01244583]
[1737983200442,0.347272,100790.0,100770.0,0.43173907]
[1737983200560,0.09734729,100780.0,100770.0,0.28289407]
[1737983200758,0.24742398,100780.0,100770.0,0.28289407]
[1737983200959,0.09734729,100780.0,100770.0,0.08443907]
[1737983201216,0.24742398,100780.0,100770.0,0.08443907]
[1737983201389,0.24618629,100780.0,100770.0,0.08443907]
[1737983201816,0.24633484,100780.0,100770.0,0.08443907]
[1737983202020,0.24633484,100780.0,100770.0,0.23329207]
[1737983202218,0.09749584,100780.0,100770.0,0.23329207]
[1737983202785,0.24633484,100780.0,100770.0,0.23429207]
[1737983203115,0.24633484,100780.0,100770.0,0.08543907]
[1737983203323,0.24633484,100780.0,100770.0,0.09043907]
[1737983203529,0.09749584,100780.0,100770.0,0.23429207]
[1737983203743,0.09749584,100780.0,100770.0,0.149853]
[1737983203963,0.09749584,100780.0,100770.0,0.158853]
[1737983203964,0.09849584,100780.0,100770.0,0.158853]
[1737983204167,0.24633484,100780.0,100770.0,0.148853]
[1737983204369,0.09749584,100780.0,100770.0,0.148853]
[1737983204642,0.09749584,100780.0,100770.0,0.155853]
[1737983204881,0.24633484,100780.0,100770.0,0.155853]
[1737983205060,0.09749584,100780.0,100770.0,0.153853]
[1737983205260,0.09749584,100780.0,100770.0,0.154853]
[1737983205461,0.24633484,100780.0,100770.0,0.154853]
[1737983205613,0.09749584,100780.0,100770.0,0.154853]
[1737983206370,0.00014855,100780.0,100770.0,0.32484689]
[1737983206919,0.09749584,100780.0,100770.0,0.154853]
[1737983207325,0.09749584,100780.0,100770.0,0.149853]
[1737983207544,0.09749584,100780.0,100770.0,0.158853]
[1737983207545,0.09849584,100780.0,100770.0,0.158853]
[1737983207763,0.09849584,100780.0,100770.0,0.157853]
[1737983208154,0.09849584,100780.0,100770.0,0.155853]
[1737983208626,0.09849584,100780.0,100770.0,0.152853]
[1737983208908,0.07349584,100780.0,100770.0,0.155853]
[1737983209110,0.001,100780.0,100770.0,0.155853]
[1737983209339,0.09834729,100780.0,100770.0,0.155853]
[1737983209541,0.24718629,100780.0,100770.0,0.012]
[1737983209992,0.32938629,100780.0,100770.0,0.012]
[1737983210402,0.32938629,100780.0,100770.0,0.01229694]
[1737983210812,0.32938629,100780.0,100770.0,0.80318394]
[1737983211442,0.32838629,100780.0,100770.0,0.79518394]
[1737983211868,0.32838629,100780.0,100770.0,0.79418394]
[1737983212078,0.09734729,100780.0,100770.0,0.94303694]
[1737983212285,0.24618629,100780.0,100770.0,0.79818394]
[1737983213131,0.24618629,100780.0,100770.0,0.94703694]
[1737983213462,0.24618629,100780.0,100770.0,0.94303694]
[1737983214106,0.24618629,100780.0,100770.0,0.79618394]
[1737983218807,0.24618629,100780.0,100770.0,0.94503694]
[1737983219020,0.09734729,100780.0,100770.0,0.94503694]
[1737983220513,0.5926494,100810.0,100790.0,0.148824]
[1737983220722,0.5926494,100810.0,100800.0,0.148809]
[1737983220723,0.0001414,100810.0,100800.0,0.148809]
[1737983220935,0.09748869,100810.0,100800.0,0.31880289]
[1737983221144,0.0001414,100810.0,100800.0,0.31880289]
[1737983222003,0.0001414,100810.0,100800.0,0.148809]
[1737983222207,0.0001414,100810.0,100800.0,0.31979482]
[1737983222415,0.0001414,100810.0,100800.0,0.47880289]
[1737983222622,0.0001414,100810.0,100800.0,0.55840289]
[1737983222866,0.0001414,100810.0,100800.0,0.55640289]
[1737983224522,0.09748869,100810.0,100800.0,0.151809]
[1737983224945,0.09748869,100810.0,100800.0,0.160809]
[1737983225787,0.09748869,100810.0,100800.0,0.148809]
[1737983225995,0.24752038,100810.0,100800.0,0.160809]
[1737983226208,0.09748869,100810.0,100800.0,0.160809]
[1737983226429,0.09748869,100810.0,100800.0,0.151809]
[1737983226654,0.0001414,100810.0,100800.0,0.32279497]
[1737983226863,0.0001414,100810.0,100800.0,0.47180289]
[1737983227059,0.0001414,100810.0,100800.0,0.301809]
[1737983227266,0.0001414,100810.0,100800.0,0.55460289]
[1737983227643,0.0001414,100810.0,100800.0,0.55160289]
[1737983227881,0.0001414,100810.0,100800.0,0.55460289]
[1737983228283,0.0001414,100810.0,100800.0,0.56260289]
[1737983228485,0.0001414,100810.0,100800.0,0.55160289]
[1737983228888,0.0001414,100810.0,100800.0,0.56360289]
[1737983229505,0.0001414,100810.0,100800.0,0.58380935]
[1737983229907,0.39464689,100850.0,100830.0,0.198349]
[1737983230088,0.44443929,100840.0,100820.0,0.148769]
[1737983230297,0.09734729,100840.0,100830.0,0.148765]
[1737983230703,0.24609729,100840.0,100830.0,0.148765]
[1737983230905,0.09734729,100840.0,100830.0,0.148765]
[1737983231203,0.09749606,100840.0,100830.0,0.148765]
[1737983232042,0.09749606,100840.0,100830.0,0.150765]
[1737983232383,0.09749606,100840.0,100830.0,0.158765]
[1737983234143,0.09763756,100840.0,100830.0,0.01]
[1737983234317,0.25615132,100840.0,100830.0,0.01]
[1737983234556,0.64708145,100840.0,100830.0,0.01]
[1737983234905,0.65708145,100840.0,100830.0,0.01]
[1737983235112,0.48708756,100840.0,100830.0,0.007526]
[1737983235294,0.148782,100820.0,100800.0,0.545602]
[1737983235504,0.24614129,100810.0,100800.0,0.198401]
[1737983235680,0.148824,100790.0,100780.0,0.00029715]
[1737983235881,0.24617129,100790.0,100780.0,0.00029715]
[1737983236333,0.41616518,100790.0,100780.0,0.00029715]
[1737983236694,0.64666518,100790.0,100780.0,0.00029715]
[1737983237120,0.47667129,100790.0,100780.0,0.00079358]
[1737983238065,0.47667129,100790.0,100780.0,0.00979358]
[1737983238515,0.47667129,100790.0,100780.0,0.00079358]
[1737983238722,0.64666518,100790.0,100780.0,0.00279358]
[1737983238935,0.64666518,100790.0,100780.0,0.00779358]
[1737983239143,0.65666518,100790.0,100780.0,0.00579358]
[1737983239346,0.65666518,100790.0,100780.0,0.79960158]
[1737983239760,0.65666518,100790.0,100780.0,0.79460158]
[1737983239964,0.65666518,100790.0,100780.0,0.79960158]
[1737983241105,0.48667129,100790.0,100780.0,0.79960158]
[1737983241513,0.48667129,100790.0,100780.0,0.79460158]
[1737983241690,0.66066518,100790.0,100780.0,0.79460158]
[1737983241918,0.68066518,100790.0,100780.0,0.79460158]
[1737983242055,0.50082733,100790.0,100780.0,0.79460158]
[1737983242514,0.49882733,100790.0,100780.0,0.79460158]
[1737983242701,0.66982122,100790.0,100780.0,0.79460158]
[1737983244127,0.49882733,100790.0,100780.0,0.79460158]
[1737983244564,0.50082733,100790.0,100780.0,0.79460158]
[1737983245491,0.50096883,100790.0,100780.0,0.79460158]
[1737983245892,0.49896883,100790.0,100780.0,0.79460158]
[1737983246087,0.49696883,100790.0,100780.0,0.79460158]
[1737983246293,0.66696272,100790.0,100780.0,0.79560158]
[1737983246549,0.49696883,100790.0,100780.0,0.79560158]
[1737983246926,0.26646883,100790.0,100780.0,0.79560158]
[1737983247158,0.09748879,100790.0,100780.0,0.94444058]
[1737983247359,0.24731279,100790.0,100780.0,0.94444058]
[1737983247767,0.24731279,100790.0,100780.0,0.94344058]
[1737983247977,0.24631279,100790.0,100780.0,0.94444058]
[1737983248131,0.24731279,100790.0,100780.0,0.94444058]
[1737983248325,0.09848879,100790.0,100780.0,0.94444058]
[1737983248578,0.24731279,100790.0,100780.0,0.94444058]
[1737983248717,0.09848879,100790.0,100780.0,0.94444058]
[1737983250173,0.0011415,100790.0,100780.0,1.11443447]
[1737983250634,0.0011415,100790.0,100780.0,1.26443447]
[1737983250837,0.0001415,100790.0,100780.0,1.26443447]
[1737983251042,0.0001415,100790.0,100780.0,1.26643447]
[1737983251463,0.0001415,100790.0,100780.0,1.10544058]
[1737983251693,0.0001415,100790.0,100780.0,1.10244058]
[1737983251899,0.0001415,100790.0,100780.0,1.27243447]
[1737983252115,0.0001415,100790.0,100780.0,1.28570744]
[1737983252322,0.0001415,100790.0,100780.0,1.11571355]
[1737983252538,0.0001415,100790.0,100780.0,0.96571355]
[1737983252742,0.0001415,100790.0,100780.0,1.13570744]
[1737983252999,0.0001415,100790.0,100780.0,1.28570744]
[1737983253000,5e-07,100790.0,100780.0,1.28570744]
[1737983253219,5e-07,100790.0,100780.0,1.38305473]
[1737983254054,5e-07,100790.0,100780.0,1.51835473]
[1737983254263,5e-07,100790.0,100780.0,1.53835473]
[1737983254476,5e-07,100790.0,100780.0,1.53535473]
[1737983254680,5e-07,100790.0,100780.0,1.52935473]
[1737983255095,5e-07,100790.0,100780.0,1.53835473]
[1737983255303,5e-07,100790.0,100780.0,1.53535473]
[1737983255723,5e-07,100790.0,100780.0,1.53835473]
[1737983257688,5e-07,100790.0,100780.0,1.52835473]
[1737983258003,5e-07,100790.0,100780.0,1.50835473]
[1737983258252,5e-07,100790.0,100780.0,1.53835473]
[1737983258450,5e-07,100790.0,100780.0,1.23305473]
[1737983258647,5e-07,100790.0,100780.0,1.05015262]
[1737983258850,5e-07,100790.0,100780.0,1.22014651]
[1737983259364,5e-07,100790.0,100780.0,1.4674938]
[1737983259564,5e-07,100790.0,100780.0,1.37014651]
[1737983260230,5e-07,100790.0,100780.0,1.19715262]
[1737983260435,0.09734779,100790.0,100780.0,1.04715262]
[1737983260647,0.09734779,100790.0,100780.0,1.03887965]
[1737983260855,0.24617179,100790.0,100780.0,0.95444058]
[1737983261049,0.09734779,100790.0,100780.0,0.94344058]
[1737983261196,0.24617179,100790.0,100780.0,0.94344058]
[1737983261400,0.24617179,100790.0,100780.0,0.95444058]
[1737983261607,0.09734779,100790.0,100780.0,0.95444058]
[1737983261806,0.09734779,100790.0,100780.0,0.94544058]
[1737983262055,0.09734779,100790.0,100780.0,0.95244058]
[1737983262599,0.24617179,100790.0,100780.0,0.80360158]
[1737983263507,0.24617179,100790.0,100780.0,0.80560158]
[1737983265021,0.24617179,100790.0,100780.0,0.95444058]
[1737983265220,0.24617179,100790.0,100780.0,0.95244058]
[1737983265448,0.24617179,100790.0,100780.0,0.79460158]
[1737983265916,0.24617179,100790.0,100780.0,0.80260158]
[1737983266828,0.24617179,100790.0,100780.0,0.80460158]
[1737983267434,0.34871126,100790.0,100780.0,0.83260158]
[1737983267639,0.50206568,100790.0,100780.0,0.83360158]
[1737983267837,0.32207179,100790.0,100780.0,0.83360158]
[1737983268039,0.50206568,100790.0,100780.0,0.83360158]
[1737983268378,0.67206568,100790.0,100780.0,0.83360158]
[1737983268717,0.67206568,100790.0,100780.0,0.82560158]
[1737983268861,0.67206568,100790.0,100780.0,0.82460158]
[1737983269062,0.65406568,100790.0,100780.0,0.82460158]
[1737983269264,0.60406568,100790.0,100780.0,0.82460158]
[1737983269466,0.42407179,100790.0,100780.0,0.82460158]
[1737983269647,0.60406568,100790.0,100780.0,0.82460158]
[1737983270049,0.59406568,100790.0,100780.0,0.82460158]
[1737983270517,0.27407179,100790.0,100780.0,0.82460158]
[1737983270735,0.27407179,100790.0,100780.0,0.97344058]
[1737983271347,0.04934779,100790.0,100780.0,0.97344058]
[1737983271960,0.04734779,100790.0,100780.0,0.97344058]
[1737983272212,0.04734779,100790.0,100780.0,0.97444058]
[1737983272636,0.04734779,100790.0,100780.0,0.97344058]
[1737983272837,0.04734779,100790.0,100780.0,0.97444058]
[1737983273252,0.0752,100810.0,100800.0,0.148809]
[1737983273500,0.09734729,100810.0,100800.0,0.347207]
[1737983273702,0.42894,100830.0,100810.0,0.347162]
[1737983273903,0.09734729,100820.0,100810.0,0.198378]
[1737983274961,0.09734729,100820.0,100810.0,0.199378]
[1737983275481,0.09710075,100820.0,100810.0,0.198378]
[1737983276306,0.09710075,100820.0,100810.0,0.206378]
[1737983276904,0.0001415,100840.0,100830.0,0.148765]
[1737983277157,0.09748879,100840.0,100830.0,0.148765]
[1737983278183,0.09763756,100840.0,100830.0,0.148765]
[1737983278670,0.09763756,100840.0,100830.0,0.149765]
[1737983279090,0.00029027,100840.0,100830.0,0.149765]
[1737983279289,0.00029027,100840.0,100830.0,0.32075044]
[1737983279489,0.00029027,100840.0,100830.0,0.31975889]
[1737983279924,0.0001416,100860.0,100840.0,0.15]
[1737983280147,0.0001416,100860.0,100850.0,0.5058202]
[1737983280354,0.0001416,100860.0,100850.0,0.50482889]
[1737983280555,0.0001416,100860.0,100850.0,0.62217618]
[1737983280556,6e-07,100860.0,100850.0,0.62217618]
[1737983280767,0.0149527,100870.0,100860.0,0.19422]
[1737983280998,7e-07,100870.0,100860.0,0.55955235]
[1737983281220,0.01096082,100900.0,100890.0,0.148676]
[1737983281426,0.01110957,100900.0,100890.0,0.184776]
[1737983281835,0.01110957,100900.0,100890.0,0.50476989]
[1737983282041,0.01110957,100900.0,100890.0,0.66781718]
[1737983282260,0.01110957,100900.0,100890.0,0.69699455]
[1737983282473,0.01110957,100900.0,100890.0,0.70601212]
[1737983282683,0.01110957,100900.0,100890.0,0.65781718]
[1737983282893,0.01110957,100900.0,100890.0,0.73963526]
[1737983283109,0.0001415,100920.0,100910.0,0.148647]
[1737983283320,0.0101416,100930.0,100920.0,0.15]
[1737983283556,0.00049577,100930.0,100920.0,0.80305763]
[1737983283768,0.0001416,100950.0,100940.0,0.298603]
[1737983283970,0.0001416,100950.0,100940.0,0.46859689]
[1737983283971,0.0002902,100950.0,100940.0,0.46859689]
[1737983284395,0.0002902,100950.0,100940.0,0.64293134]
[1737983284594,0.0146414,100960.0,100950.0,0.54969657]
[1737983284820,0.02719358,100970.0,100950.0,0.83313775]
[1737983285022,0.14853,100990.0,100970.0,0.346618]
[1737983285226,0.24587729,100990.0,100970.0,0.148556]
[1737983285434,0.09734729,100980.0,100960.0,0.346652]
[1737983285635,0.09734729,100970.0,100950.0,0.184677]
[1737983285839,0.09734729,100970.0,100960.0,0.148573]
[1737983286041,0.24591329,100970.0,100950.0,0.184687]
[1737983286259,0.09734729,100970.0,100950.0,0.0361]
[1737983286458,0.09734729,100970.0,100950.0,0.382782]
[1737983286667,0.09734729,100960.0,100950.0,0.184677]
[1737983286869,0.09725778,100960.0,100950.0,0.0361]
[1737983287016,0.34665,100970.0,100950.0,0.184685]
[1737983287230,0.44399729,100970.0,100950.0,0.184685]
[1737983287459,0.24592029,100960.0,100950.0,0.0361]
[1737983287664,0.09734729,100960.0,100930.0,0.382261]
[1737983287863,0.09734729,100960.0,100950.0,0.01]
[1737983288009,0.09734729,100960.0,100950.0,0.158588]
[1737983288224,0.09734729,100960.0,100950.0,0.149588]
[1737983288419,0.09734729,100960.0,100940.0,0.396249]
[1737983288649,0.148574,100960.0,100950.0,0.007]
[1737983288843,0.148588,100950.0,100930.0,0.46685367]
[1737983289065,0.24595029,100940.0,100930.0,0.08458767]
[1737983289262,0.09734729,100940.0,100930.0,0.23320467]
[1737983289786,0.39622,100960.0,100930.0,0.43135267]
[1737983289989,0.09734729,100950.0,100940.0,0.198137]
[1737983290192,0.09734729,100950.0,100940.0,0.198126]
[1737983290325,0.09734729,100950.0,100930.0,0.62950067]
[1737983290521,0.09734729,100950.0,100940.0,0.148603]
[1737983291026,0.680073,100980.0,100940.0,0.148603]
[1737983291239,0.09734729,100970.0,100960.0,0.148569]
[1737983291744,0.24590529,100970.0,100960.0,0.148569]
[1737983291954,0.09734729,100970.0,100960.0,0.148569]
[1737983292238,0.24591429,100970.0,100950.0,0.346682]
[1737983292486,0.0001414,100960.0,100950.0,0.148581]
[1737983292720,0.09748869,100960.0,100950.0,0.148581]
[1737983292921,0.09748869,100960.0,100950.0,0.148588]
[1737983293356,0.0001414,100960.0,100950.0,0.148588]
[1737983293628,0.0001414,100960.0,100950.0,0.29957847]
[1737983293832,0.0001414,100960.0,100950.0,0.298588]
[1737983294262,0.0001414,100960.0,100950.0,0.299588]
[1737983294497,0.0001414,100960.0,100950.0,0.46958189]
[1737983294742,0.0001414,100960.0,100950.0,0.298588]
[1737983294971,0.0001414,100960.0,100950.0,0.302588]
[1737983295409,0.0001414,100960.0,100950.0,0.298588]
[1737983296310,0.0001414,100960.0,100950.0,0.47258189]
[1737983296515,0.0001414,100960.0,100950.0,0.302588]
[1737983296720,0.24606169,100960.0,100950.0,0.004]
[1737983297253,0.09748869,100960.0,100950.0,0.152588]
[1737983297381,0.0001414,100960.0,100950.0,0.152588]
[1737983299107,0.0001414,100960.0,100950.0,0.57091962]
[1737983299312,0.0001414,100960.0,100950.0,0.56992918]
[1737983300244,0.148555,100980.0,100960.0,0.346648]
[1737983300446,0.44397029,100980.0,100960.0,0.544735]
[1737983300743,0.24590229,100980.0,100960.0,0.544735]
[1737983300953,0.09734729,100970.0,100960.0,0.346648]
[1737983301516,0.44398729,100970.0,100950.0,0.40827115]
[1737983301723,0.44398729,100970.0,100940.0,1.13927]
[1737983301724,0.2787,100960.0,100940.0,1.13927]
[1737983301838,0.24593529,100950.0,100940.0,0.990685]
[1737983302050,0.24593529,100950.0,100940.0,0.79255]
[1737983302949,0.41592918,100950.0,100940.0,0.79255]
[1737983303105,0.24593529,100950.0,100940.0,0.79255]
[1737983303678,0.09734729,100950.0,100940.0,0.79255]
[1737983303945,0.09734729,100950.0,100940.0,0.941153]
[1737983304537,0.09734729,100950.0,100940.0,0.948153]
[1737983304942,0.09734729,100950.0,100940.0,0.941153]
[1737983304943,0.08734729,100950.0,100940.0,0.941153]
[1737983305175,0.0001413,100970.0,100960.0,0.148573]